[Event "*** SCC Grand Prix: Titled Tuesday Blitz"]
[Site "Chess.com"]
[Date "2020.06.09"]
[Round "2"]
[White "AliKa2810"]
[Black "Radzio1987"]
[Result "0-1"]
[WhiteElo "2583"]
[BlackElo "2907"]
[TimeControl "180+1"]
[EndTime "9:17:33 PDT"]
[Termination "Radzio1987 won by resignation"]

1. d4 {[%clk 0:03:00.9]} 1... e6 {[%clk 0:02:56.6]} 2. e4 {[%clk 0:03:00.5]}
2... g6 {[%clk 0:02:57.1]} 3. Bd3 {[%clk 0:02:59.9]} 3... Bg7 {[%clk 0:02:57.4]}
4. Nf3 {[%clk 0:03:00.5]} 4... b6 {[%clk 0:02:57.2]} 5. O-O {[%clk 0:03:00.7]}
5... Bb7 {[%clk 0:02:57.7]} 6. Re1 {[%clk 0:03:00.9]} 6... Ne7 {[%clk
0:02:57.7]} 7. Nbd2 {[%clk 0:02:59.8]} 7... d5 {[%clk 0:02:56.5]} 8. exd5 {[%clk
0:02:43.8]} 8... Nxd5 {[%clk 0:02:50.9]} 9. Ne4 {[%clk 0:02:42.7]} 9... h6
{[%clk 0:02:49.4]} 10. a3 {[%clk 0:02:39.8]} 10... Nd7 {[%clk 0:02:44.8]} 11. c4
{[%clk 0:02:35.8]} 11... Ne7 {[%clk 0:02:44.9]} 12. Bf4 {[%clk 0:02:26.6]} 12...
O-O {[%clk 0:02:43.6]} 13. Qd2 {[%clk 0:02:26]} 13... Nf5 {[%clk 0:02:38.1]} 14.
Rad1 {[%clk 0:02:13]} 14... g5 {[%clk 0:02:23.8]} 15. Be5 {[%clk 0:02:11.9]}
15... Nxe5 {[%clk 0:02:15.3]} 16. dxe5 {[%clk 0:01:30.3]} 16... g4 {[%clk
0:02:14.4]} 17. Nf6+ {[%clk 0:01:30.2]} 17... Bxf6 {[%clk 0:02:10.7]} 18. Bxf5
{[%clk 0:01:20.7]} 18... Qxd2 {[%clk 0:01:47.7]} 19. Nxd2 {[%clk 0:01:17.7]}
19... exf5 {[%clk 0:01:12.6]} 20. exf6 {[%clk 0:01:16.5]} 20... Rad8 {[%clk
0:01:12.3]} 21. Nb1 {[%clk 0:00:45.4]} 21... Kh7 {[%clk 0:01:04.6]} 22. Nc3
{[%clk 0:00:43.6]} 22... Kg6 {[%clk 0:01:04.4]} 23. Rxd8 {[%clk 0:00:30.6]}
23... Rxd8 {[%clk 0:01:05.3]} 24. Re7 {[%clk 0:00:30.8]} 24... Rd2 {[%clk
0:00:59.3]} 25. Rxc7 {[%clk 0:00:30]} 25... Rc2 {[%clk 0:00:53.9]} 26. h4 {[%clk
0:00:17.5]} 26... g3 {[%clk 0:00:30.2]} 27. Rxb7 {[%clk 0:00:16]} 27... Rc1+
{[%clk 0:00:29.7]} 0-1

[Event "*** SCC Grand Prix: Titled Tuesday Blitz"]
[Site "Chess.com"]
[Date "2020.06.09"]
[Round "2"]
[White "vugarrasulov"]
[Black "Kolle05"]
[Result "1-0"]
[WhiteElo "2793"]
[BlackElo "2372"]
[TimeControl "180+1"]
[EndTime "9:17:35 PDT"]
[Termination "vugarrasulov won by resignation"]

1. e4 {[%clk 0:03:00.9]} 1... c5 {[%clk 0:02:59.7]} 2. Nf3 {[%clk 0:03:00.1]}
2... d6 {[%clk 0:03:00]} 3. d4 {[%clk 0:03:00.1]} 3... cxd4 {[%clk 0:03:00.9]}
4. Nxd4 {[%clk 0:03:00.9]} 4... Nf6 {[%clk 0:03:01.4]} 5. Nc3 {[%clk 0:03:01.1]}
5... a6 {[%clk 0:03:01.9]} 6. Bg5 {[%clk 0:02:58.4]} 6... e6 {[%clk 0:03:02.2]}
7. f4 {[%clk 0:02:58.2]} 7... h6 {[%clk 0:03:02.5]} 8. Bh4 {[%clk 0:02:57.8]}
8... Qb6 {[%clk 0:03:02.6]} 9. a3 {[%clk 0:02:56.5]} 9... Be7 {[%clk 0:03:01.7]}
10. Bf2 {[%clk 0:02:56.1]} 10... Qc7 {[%clk 0:03:01.8]} 11. Qf3 {[%clk
0:02:55.5]} 11... Nbd7 {[%clk 0:03:01.6]} 12. O-O-O {[%clk 0:02:55.3]} 12... b5
{[%clk 0:03:01.6]} 13. Bd3 {[%clk 0:02:37.6]} 13... Bb7 {[%clk 0:03:01]} 14.
Rhe1 {[%clk 0:02:36.8]} 14... O-O-O {[%clk 0:02:29.6]} 15. Kb1 {[%clk
0:02:33.2]} 15... Kb8 {[%clk 0:02:29.4]} 16. Qg3 {[%clk 0:02:30.9]} 16... g5
{[%clk 0:02:23.7]} 17. f5 {[%clk 0:02:28.9]} 17... e5 {[%clk 0:02:21.9]} 18. Nb3
{[%clk 0:02:28.2]} 18... Nc5 {[%clk 0:02:15.2]} 19. Qf3 {[%clk 0:02:18.4]} 19...
Na4 {[%clk 0:01:42.8]} 20. Nxa4 {[%clk 0:02:06.8]} 20... bxa4 {[%clk 0:01:43.7]}
21. Nd2 {[%clk 0:02:07.2]} 21... d5 {[%clk 0:01:40.6]} 22. exd5 {[%clk
0:02:06.9]} 22... Bxd5 {[%clk 0:01:37.8]} 23. Ne4 {[%clk 0:02:03.8]} 23... Qb7
{[%clk 0:01:27.2]} 24. Bg3 {[%clk 0:01:42.4]} 24... Ka8 {[%clk 0:00:23.4]} 25.
Bxe5 {[%clk 0:01:39.3]} 25... Rhe8 {[%clk 0:00:21]} 26. Qe2 {[%clk 0:01:00.1]}
26... Bxe4 {[%clk 0:00:08.2]} 27. Bxe4 {[%clk 0:00:56.1]} 27... Rxd1+ {[%clk
0:00:07.8]} 28. Rxd1 {[%clk 0:00:56.9]} 28... Nxe4 {[%clk 0:00:07.7]} 29. Rd7
{[%clk 0:00:55.2]} 29... Qb5 {[%clk 0:00:01.2]} 30. Qxe4+ {[%clk 0:00:54.4]} 1-0

[Event "*** SCC Grand Prix: Titled Tuesday Blitz"]
[Site "Chess.com"]
[Date "2020.06.09"]
[Round "2"]
[White "rugbyclub"]
[Black "Meri-Arabidze"]
[Result "0-1"]
[WhiteElo "2119"]
[BlackElo "2648"]
[TimeControl "180+1"]
[EndTime "9:17:36 PDT"]
[Termination "Meri-Arabidze won by resignation"]

1. c4 {[%clk 0:03:00.9]} 1... e6 {[%clk 0:02:59.8]} 2. Nc3 {[%clk 0:03:00.9]}
2... d5 {[%clk 0:03:00.7]} 3. d4 {[%clk 0:02:59.2]} 3... Nf6 {[%clk 0:03:00.9]}
4. cxd5 {[%clk 0:02:57.2]} 4... exd5 {[%clk 0:03:01.8]} 5. Bg5 {[%clk
0:02:57.1]} 5... Nbd7 {[%clk 0:03:02.4]} 6. e3 {[%clk 0:02:54.8]} 6... Be7
{[%clk 0:03:03]} 7. Bd3 {[%clk 0:02:54.8]} 7... c6 {[%clk 0:03:02.6]} 8. Qc2
{[%clk 0:02:52.6]} 8... Nh5 {[%clk 0:03:02.4]} 9. Bxe7 {[%clk 0:02:49.5]} 9...
Qxe7 {[%clk 0:03:03.3]} 10. Nge2 {[%clk 0:02:49.7]} 10... g6 {[%clk 0:03:03.1]}
11. h3 {[%clk 0:02:48.9]} 11... Nb6 {[%clk 0:03:03.1]} 12. O-O-O {[%clk
0:02:46.4]} 12... Be6 {[%clk 0:03:03.2]} 13. Kb1 {[%clk 0:02:46.3]} 13... O-O-O
{[%clk 0:03:03.2]} 14. Rhe1 {[%clk 0:02:42.8]} 14... Kb8 {[%clk 0:03:02.7]} 15.
f3 {[%clk 0:02:42.5]} 15... Rhe8 {[%clk 0:02:55]} 16. e4 {[%clk 0:02:41.3]}
16... dxe4 {[%clk 0:02:54.9]} 17. fxe4 {[%clk 0:02:41]} 17... Bc4 {[%clk
0:02:54.5]} 18. g4 {[%clk 0:02:31.7]} 18... Ng7 {[%clk 0:02:52.1]} 19. b3 {[%clk
0:02:23.9]} 19... Bxd3 {[%clk 0:02:51.7]} 20. Qxd3 {[%clk 0:02:24.1]} 20... Ne6
{[%clk 0:02:51.7]} 21. d5 {[%clk 0:02:15.1]} 21... Nc5 {[%clk 0:02:49.8]} 22.
Qg3+ {[%clk 0:02:08.5]} 22... Qd6 {[%clk 0:02:25.6]} 23. Qxd6+ {[%clk
0:02:06.6]} 23... Rxd6 {[%clk 0:02:24.8]} 24. dxc6 {[%clk 0:02:07.2]} 24... Rxc6
{[%clk 0:02:24]} 25. Nd4 {[%clk 0:01:25.5]} 25... Rcc8 {[%clk 0:02:20.1]} 26.
Ndb5 {[%clk 0:01:03.5]} 26... Re7 {[%clk 0:01:56.5]} 27. Kb2 {[%clk 0:00:42.5]}
27... a6 {[%clk 0:01:41.9]} 28. Nd6 {[%clk 0:00:41.6]} 28... Rd8 {[%clk
0:01:41.3]} 29. e5 {[%clk 0:00:40.5]} 29... Ne6 {[%clk 0:01:34.1]} 30. a4 {[%clk
0:00:30.5]} 30... Red7 {[%clk 0:01:23.8]} 31. a5 {[%clk 0:00:20.8]} 31... Nc8
{[%clk 0:01:24.2]} 32. Nxc8 {[%clk 0:00:14.6]} 32... Kxc8 {[%clk 0:01:20.5]} 33.
Rxd7 {[%clk 0:00:11.9]} 33... Rxd7 {[%clk 0:01:17.6]} 34. Re3 {[%clk 0:00:12.5]}
34... Rd2+ {[%clk 0:01:14.1]} 35. Ka3 {[%clk 0:00:11.9]} 35... Nd4 {[%clk
0:01:11.7]} 36. Ne4 {[%clk 0:00:08.9]} 36... Nc2+ {[%clk 0:01:09.4]} 37. Ka4
{[%clk 0:00:08.8]} 37... Rd4+ {[%clk 0:01:04.2]} 0-1

[Event "*** SCC Grand Prix: Titled Tuesday Blitz"]
[Site "Chess.com"]
[Date "2020.06.09"]
[Round "2"]
[White "zajka-molotok"]
[Black "jefferyx"]
[Result "0-1"]
[WhiteElo "2376"]
[BlackElo "2916"]
[TimeControl "180+1"]
[EndTime "9:17:36 PDT"]
[Termination "jefferyx won by resignation"]

1. e4 {[%clk 0:03:00.9]} 1... c5 {[%clk 0:02:56.6]} 2. Nc3 {[%clk 0:02:58.7]}
2... e6 {[%clk 0:02:55.6]} 3. f4 {[%clk 0:02:57.6]} 3... a6 {[%clk 0:02:55.6]}
4. a4 {[%clk 0:02:53.6]} 4... b6 {[%clk 0:02:55.9]} 5. Nf3 {[%clk 0:02:53.1]}
5... Bb7 {[%clk 0:02:56.3]} 6. Be2 {[%clk 0:02:49.8]} 6... Nf6 {[%clk
0:02:56.1]} 7. d3 {[%clk 0:02:47.7]} 7... d6 {[%clk 0:02:50.8]} 8. O-O {[%clk
0:02:47.3]} 8... Be7 {[%clk 0:02:50.6]} 9. Be3 {[%clk 0:02:37.4]} 9... d5 {[%clk
0:02:48.4]} 10. e5 {[%clk 0:02:30.2]} 10... d4 {[%clk 0:02:48.4]} 11. exf6
{[%clk 0:02:28.4]} 11... Bxf6 {[%clk 0:02:49.3]} 12. Bd2 {[%clk 0:02:24.5]}
12... dxc3 {[%clk 0:02:48.5]} 13. Bxc3 {[%clk 0:02:25.1]} 13... Nc6 {[%clk
0:02:46.4]} 14. Ne5 {[%clk 0:02:05.9]} 14... Nd4 {[%clk 0:02:46.1]} 15. Qd2
{[%clk 0:01:48.4]} 15... O-O {[%clk 0:02:35.6]} 16. Bf3 {[%clk 0:01:43]} 16...
Bxf3 {[%clk 0:02:28.4]} 17. Nxf3 {[%clk 0:01:43.5]} 17... Qd5 {[%clk 0:02:29]}
18. Rae1 {[%clk 0:01:33.8]} 18... Rfd8 {[%clk 0:02:28.4]} 19. Ne5 {[%clk
0:01:27.5]} 19... b5 {[%clk 0:02:27.2]} 20. b3 {[%clk 0:01:15.2]} 20... Rac8
{[%clk 0:02:15.5]} 21. Kh1 {[%clk 0:00:55]} 21... bxa4 {[%clk 0:02:15.3]} 22.
bxa4 {[%clk 0:00:54.8]} 22... Qa2 {[%clk 0:02:16.2]} 23. Bxd4 {[%clk 0:00:48.2]}
23... cxd4 {[%clk 0:02:16.2]} 24. Nc4 {[%clk 0:00:39.6]} 24... Qxa4 {[%clk
0:02:16.1]} 25. Ra1 {[%clk 0:00:33.6]} 25... Qc6 {[%clk 0:02:08.2]} 26. Ra5
{[%clk 0:00:33]} 26... Rd5 {[%clk 0:02:04.1]} 27. Ra2 {[%clk 0:00:24.5]} 27...
h5 {[%clk 0:01:56.4]} 28. Rfa1 {[%clk 0:00:23.1]} 28... Ra8 {[%clk 0:01:56.4]}
29. h3 {[%clk 0:00:20.4]} 29... h4 {[%clk 0:01:56]} 30. Qf2 {[%clk 0:00:19.3]}
30... Rb5 {[%clk 0:01:54.5]} 31. Kh2 {[%clk 0:00:18.2]} 31... Rc5 {[%clk
0:01:44.7]} 32. Qe2 {[%clk 0:00:17.8]} 32... Qc7 {[%clk 0:01:41.8]} 33. Qe4
{[%clk 0:00:16.5]} 33... Rd8 {[%clk 0:01:21.7]} 34. Rxa6 {[%clk 0:00:15.4]}
34... Rf5 {[%clk 0:01:22.2]} 35. Rf1 {[%clk 0:00:13.9]} 35... Bg5 {[%clk
0:01:21.8]} 36. Kh1 {[%clk 0:00:11.8]} 36... Rxf4 {[%clk 0:01:17]} 37. Rxf4
{[%clk 0:00:11]} 37... Bxf4 {[%clk 0:01:17.9]} 38. Ra8 {[%clk 0:00:09.2]} 38...
Bg3 {[%clk 0:01:17]} 39. Rxd8+ {[%clk 0:00:08.4]} 39... Qxd8 {[%clk 0:01:17.9]}
40. Kg1 {[%clk 0:00:06.7]} 40... Qg5 {[%clk 0:01:15.9]} 41. Kf1 {[%clk
0:00:02.6]} 41... Qc1+ {[%clk 0:01:15.5]} 42. Ke2 {[%clk 0:00:03.3]} 42... Qe1+
{[%clk 0:01:13.4]} 43. Kf3 {[%clk 0:00:03.9]} 43... Qf2+ {[%clk 0:01:14.3]} 44.
Kg4 {[%clk 0:00:04.1]} 44... f5+ {[%clk 0:01:15.2]} 0-1

[Event "*** SCC Grand Prix: Titled Tuesday Blitz"]
[Site "Chess.com"]
[Date "2020.06.09"]
[Round "2"]
[White "Gloomy_Wanderer"]
[Black "margarita_2703"]
[Result "1-0"]
[WhiteElo "2788"]
[BlackElo "2464"]
[TimeControl "180+1"]
[EndTime "9:17:41 PDT"]
[Termination "Gloomy_Wanderer won by resignation"]

1. d4 {[%clk 0:02:59.7]} 1... Nf6 {[%clk 0:02:57.9]} 2. Nf3 {[%clk 0:02:59.4]}
2... d5 {[%clk 0:02:56.5]} 3. c4 {[%clk 0:02:59.2]} 3... e6 {[%clk 0:02:56]} 4.
g3 {[%clk 0:02:59.2]} 4... b6 {[%clk 0:02:53.1]} 5. cxd5 {[%clk 0:02:58.8]} 5...
exd5 {[%clk 0:02:52.5]} 6. Bg2 {[%clk 0:02:58.9]} 6... Bb7 {[%clk 0:02:52.2]} 7.
O-O {[%clk 0:02:58.9]} 7... Be7 {[%clk 0:02:51.2]} 8. Nc3 {[%clk 0:02:59]} 8...
O-O {[%clk 0:02:50.8]} 9. Bf4 {[%clk 0:02:59.2]} 9... c5 {[%clk 0:02:48.4]} 10.
dxc5 {[%clk 0:02:58.7]} 10... bxc5 {[%clk 0:02:48.4]} 11. Rc1 {[%clk 0:02:41.9]}
11... d4 {[%clk 0:02:43.5]} 12. Na4 {[%clk 0:02:37.2]} 12... Nbd7 {[%clk
0:02:40.2]} 13. b4 {[%clk 0:01:42.3]} 13... cxb4 {[%clk 0:02:32.3]} 14. Nxd4
{[%clk 0:01:42.1]} 14... Bxg2 {[%clk 0:02:31.3]} 15. Kxg2 {[%clk 0:01:42.6]}
15... Nb6 {[%clk 0:02:25.6]} 16. Nxb6 {[%clk 0:01:20.5]} 16... Qxb6 {[%clk
0:02:22.3]} 17. Nf5 {[%clk 0:01:19.7]} 17... Bc5 {[%clk 0:02:11.8]} 18. Qb3
{[%clk 0:01:07.6]} 18... a5 {[%clk 0:02:04.7]} 19. Qf3 {[%clk 0:00:51.6]} 19...
Rac8 {[%clk 0:01:51.5]} 20. Be5 {[%clk 0:00:48.5]} 20... Rfe8 {[%clk 0:01:37.8]}
21. Bb2 {[%clk 0:00:38]} 21... Qe6 {[%clk 0:01:22.6]} 22. e3 {[%clk 0:00:28]}
22... Bf8 {[%clk 0:01:19.2]} 23. Rfd1 {[%clk 0:00:26]} 23... Ne4 {[%clk
0:01:07.1]} 24. Rxc8 {[%clk 0:00:16.1]} 24... Rxc8 {[%clk 0:01:06.2]} 25. Bxg7
{[%clk 0:00:15.8]} 25... Bxg7 {[%clk 0:01:03.5]} 26. Qg4 {[%clk 0:00:16]} 26...
Qe5 {[%clk 0:00:29.1]} 27. Nh6+ {[%clk 0:00:13]} 1-0

[Event "*** SCC Grand Prix: Titled Tuesday Blitz"]
[Site "Chess.com"]
[Date "2020.06.09"]
[Round "2"]
[White "Slovak_fighter2000"]
[Black "Mbneu"]
[Result "1-0"]
[WhiteElo "2445"]
[BlackElo "2214"]
[TimeControl "180+1"]
[EndTime "9:17:46 PDT"]
[Termination "Slovak_fighter2000 won by resignation"]

1. Nf3 {[%clk 0:03:00.9]} 1... Nf6 {[%clk 0:02:57.6]} 2. c4 {[%clk 0:03:00.4]}
2... e6 {[%clk 0:02:54.7]} 3. g3 {[%clk 0:03:00]} 3... d5 {[%clk 0:02:55.1]} 4.
Bg2 {[%clk 0:03:00.3]} 4... c5 {[%clk 0:02:55.4]} 5. O-O {[%clk 0:03:00.6]} 5...
Nc6 {[%clk 0:02:54.6]} 6. cxd5 {[%clk 0:03:00.1]} 6... exd5 {[%clk 0:02:54.8]}
7. d4 {[%clk 0:02:59.6]} 7... Be7 {[%clk 0:02:55.4]} 8. Nc3 {[%clk 0:02:59.3]}
8... O-O {[%clk 0:02:55.9]} 9. Bg5 {[%clk 0:02:58.5]} 9... c4 {[%clk 0:02:55.3]}
10. Ne5 {[%clk 0:02:56.8]} 10... Be6 {[%clk 0:02:55]} 11. Nxc6 {[%clk
0:02:52.1]} 11... bxc6 {[%clk 0:02:54.4]} 12. Qa4 {[%clk 0:02:50.1]} 12... Qb6
{[%clk 0:02:43.6]} 13. e4 {[%clk 0:02:24.4]} 13... Qxb2 {[%clk 0:02:30]} 14.
Rfc1 {[%clk 0:02:12.3]} 14... Qa3 {[%clk 0:02:03.2]} 15. Qxc6 {[%clk 0:02:06.1]}
15... Rac8 {[%clk 0:02:01.2]} 16. Qb7 {[%clk 0:01:49.4]} 16... Rb8 {[%clk
0:01:54]} 17. Qc7 {[%clk 0:01:47.3]} 17... Rfc8 {[%clk 0:01:51.6]} 18. Qf4
{[%clk 0:01:45.5]} 18... Nh5 {[%clk 0:01:39.5]} 19. Qe3 {[%clk 0:01:40.5]} 19...
Bxg5 {[%clk 0:01:16.8]} 20. Qxg5 {[%clk 0:01:41.4]} 20... Nf6 {[%clk 0:01:03.9]}
21. e5 {[%clk 0:01:27.1]} 21... Ne4 {[%clk 0:00:55.9]} 22. Nxe4 {[%clk
0:01:25.3]} 22... dxe4 {[%clk 0:00:55.7]} 23. Bxe4 {[%clk 0:01:25]} 23... Rd8
{[%clk 0:00:50.2]} 24. Qe3 {[%clk 0:01:21.5]} 24... Qxe3 {[%clk 0:00:44.6]} 25.
fxe3 {[%clk 0:01:22.4]} 25... Rb2 {[%clk 0:00:29.4]} 26. Rc2 {[%clk 0:01:12.5]}
26... Rxc2 {[%clk 0:00:28.7]} 27. Bxc2 {[%clk 0:01:13.4]} 27... Rb8 {[%clk
0:00:27.8]} 28. Rb1 {[%clk 0:01:12.9]} 28... Rxb1+ {[%clk 0:00:26.9]} 29. Bxb1
{[%clk 0:01:13.8]} 29... c3 {[%clk 0:00:25.2]} 30. Kf2 {[%clk 0:00:58.3]} 30...
Bxa2 {[%clk 0:00:24.4]} 31. Bc2 {[%clk 0:00:58]} 31... a5 {[%clk 0:00:21.2]} 32.
e4 {[%clk 0:00:53.1]} 32... Kf8 {[%clk 0:00:19.6]} 33. d5 {[%clk 0:00:52.2]}
33... Ke7 {[%clk 0:00:19.9]} 34. Ke3 {[%clk 0:00:51.4]} 34... Bc4 {[%clk
0:00:18.9]} 35. Kd4 {[%clk 0:00:50.8]} 35... Bb5 {[%clk 0:00:11.6]} 36. Kxc3
{[%clk 0:00:50.3]} 36... a4 {[%clk 0:00:11.8]} 37. Kb4 {[%clk 0:00:49.6]} 37...
Bd7 {[%clk 0:00:11.6]} 38. Bxa4 {[%clk 0:00:48.8]} 1-0

[Event "*** SCC Grand Prix: Titled Tuesday Blitz"]
[Site "Chess.com"]
[Date "2020.06.09"]
[Round "2"]
[White "doctorcristian"]
[Black "dianamirza"]
[Result "1-0"]
[WhiteElo "2407"]
[BlackElo "2032"]
[TimeControl "180+1"]
[EndTime "9:17:47 PDT"]
[Termination "doctorcristian won by resignation"]

1. d4 {[%clk 0:03:00.9]} 1... Nf6 {[%clk 0:02:59.6]} 2. Nc3 {[%clk 0:03:01.1]}
2... g6 {[%clk 0:02:59.9]} 3. e4 {[%clk 0:03:00.7]} 3... d6 {[%clk 0:02:59.4]}
4. Bg5 {[%clk 0:02:59.9]} 4... Bg7 {[%clk 0:02:59.7]} 5. Qe2 {[%clk 0:02:59.6]}
5... h6 {[%clk 0:02:59.1]} 6. Bh4 {[%clk 0:02:59.1]} 6... Nc6 {[%clk 0:02:56.5]}
7. O-O-O {[%clk 0:02:58.7]} 7... Nh5 {[%clk 0:02:43.7]} 8. Nf3 {[%clk 0:02:47]}
8... Bg4 {[%clk 0:02:36.6]} 9. Qe3 {[%clk 0:02:44.5]} 9... Qd7 {[%clk
0:02:22.8]} 10. Be2 {[%clk 0:02:35.8]} 10... O-O-O {[%clk 0:02:10.4]} 11. h3
{[%clk 0:02:30.8]} 11... Bxf3 {[%clk 0:02:08.3]} 12. Bxf3 {[%clk 0:02:30.7]}
12... Nf6 {[%clk 0:02:06.6]} 13. e5 {[%clk 0:02:23.8]} 13... Ne8 {[%clk
0:01:54.9]} 14. Bxc6 {[%clk 0:02:06.9]} 14... Qxc6 {[%clk 0:01:49.5]} 15. d5
{[%clk 0:01:58.2]} 15... Qc4 {[%clk 0:01:20.1]} 16. Bxe7 {[%clk 0:01:48]} 16...
Bxe5 {[%clk 0:01:12.4]} 17. Qxa7 {[%clk 0:01:37.1]} 17... Ng7 {[%clk 0:00:52.3]}
18. Bxd8 {[%clk 0:01:32.3]} 18... Rxd8 {[%clk 0:00:49.5]} 19. Qa8+ {[%clk
0:01:28.9]} 19... Kd7 {[%clk 0:00:43.5]} 20. Qa4+ {[%clk 0:01:29.8]} 20... Qxa4
{[%clk 0:00:38.2]} 21. Nxa4 {[%clk 0:01:29.8]} 21... Ra8 {[%clk 0:00:37.8]} 22.
Nc3 {[%clk 0:01:25.1]} 22... Bxc3 {[%clk 0:00:34.7]} 23. bxc3 {[%clk 0:01:25.3]}
23... Rxa2 {[%clk 0:00:35.3]} 24. g4 {[%clk 0:01:25.4]} 24... Ra5 {[%clk
0:00:29.7]} 25. c4 {[%clk 0:01:16]} 25... Rc5 {[%clk 0:00:21.5]} 26. Rd4 {[%clk
0:01:15.9]} 26... Ne8 {[%clk 0:00:19.9]} 27. Kb2 {[%clk 0:01:13.9]} 27... Nf6
{[%clk 0:00:19.9]} 28. Ra1 {[%clk 0:01:11.6]} 28... b6 {[%clk 0:00:19]} 29. Kb3
{[%clk 0:01:06.1]} 29... h5 {[%clk 0:00:15.3]} 30. f3 {[%clk 0:01:05.5]} 30...
hxg4 {[%clk 0:00:15.1]} 31. hxg4 {[%clk 0:01:06]} 31... Nh7 {[%clk 0:00:15.4]}
32. Kb4 {[%clk 0:00:57.3]} 32... Ng5 {[%clk 0:00:15.2]} 33. Rf1 {[%clk
0:00:56.2]} 33... Ke7 {[%clk 0:00:13.4]} 34. f4 {[%clk 0:00:54.1]} 34... Nh7
{[%clk 0:00:12.6]} 35. g5 {[%clk 0:00:53.3]} 35... Kd7 {[%clk 0:00:11.2]} 36.
Re4 {[%clk 0:00:50.1]} 36... Nf8 {[%clk 0:00:10.3]} 37. Rfe1 {[%clk 0:00:50.1]}
37... Nh7 {[%clk 0:00:08.5]} 38. Re7+ {[%clk 0:00:49.6]} 1-0

[Event "*** SCC Grand Prix: Titled Tuesday Blitz"]
[Site "Chess.com"]
[Date "2020.06.09"]
[Round "2"]
[White "Baronessa08"]
[Black "AlexSuv"]
[Result "0-1"]
[WhiteElo "2371"]
[BlackElo "2778"]
[TimeControl "180+1"]
[EndTime "9:17:51 PDT"]
[Termination "AlexSuv won by resignation"]

1. c4 {[%clk 0:03:00.9]} 1... e5 {[%clk 0:02:59.7]} 2. g3 {[%clk 0:03:00.9]}
2... Nc6 {[%clk 0:02:59.6]} 3. Bg2 {[%clk 0:03:01.4]} 3... Bc5 {[%clk
0:02:59.8]} 4. Nc3 {[%clk 0:03:01.3]} 4... d6 {[%clk 0:02:59.5]} 5. e3 {[%clk
0:03:01.7]} 5... a6 {[%clk 0:02:59.8]} 6. Nge2 {[%clk 0:03:02]} 6... Ba7 {[%clk
0:03:00.2]} 7. d4 {[%clk 0:03:02.1]} 7... Nf6 {[%clk 0:02:58.3]} 8. O-O {[%clk
0:03:01.4]} 8... O-O {[%clk 0:02:58.2]} 9. h3 {[%clk 0:02:55.5]} 9... h6 {[%clk
0:02:40]} 10. b3 {[%clk 0:02:55]} 10... Re8 {[%clk 0:02:38.4]} 11. Bb2 {[%clk
0:02:53.5]} 11... Bf5 {[%clk 0:02:37.5]} 12. Nd5 {[%clk 0:02:27.5]} 12... Bg6
{[%clk 0:02:20]} 13. Rc1 {[%clk 0:02:16.2]} 13... Rc8 {[%clk 0:02:02.3]} 14. a3
{[%clk 0:02:08.9]} 14... Ne4 {[%clk 0:01:31.1]} 15. dxe5 {[%clk 0:02:02.4]}
15... dxe5 {[%clk 0:01:19.8]} 16. b4 {[%clk 0:01:53.7]} 16... Ne7 {[%clk
0:01:07.2]} 17. Nxe7+ {[%clk 0:01:48.6]} 17... Qxe7 {[%clk 0:01:08.1]} 18. c5
{[%clk 0:01:46.9]} 18... Rcd8 {[%clk 0:01:08.3]} 19. Qa4 {[%clk 0:01:38.2]}
19... c6 {[%clk 0:01:04.4]} 20. Nc3 {[%clk 0:01:25.5]} 20... Nd2 {[%clk
0:00:55]} 21. Rfd1 {[%clk 0:01:19.5]} 21... Bb8 {[%clk 0:00:55.6]} 22. Ne2
{[%clk 0:00:55.9]} 22... Qf6 {[%clk 0:00:47.8]} 23. Nf4 {[%clk 0:00:22.5]} 23...
Be4 {[%clk 0:00:29.3]} 24. Bc3 {[%clk 0:00:15.5]} 24... Bxg2 {[%clk 0:00:27.4]}
25. Kxg2 {[%clk 0:00:14.4]} 25... Ne4 {[%clk 0:00:25.6]} 26. Nd3 {[%clk
0:00:07.9]} 26... Rxd3 {[%clk 0:00:22.7]} 27. Rxd3 {[%clk 0:00:07.4]} 27...
Qxf2+ {[%clk 0:00:22.7]} 0-1

[Event "*** SCC Grand Prix: Titled Tuesday Blitz"]
[Site "Chess.com"]
[Date "2020.06.09"]
[Round "2"]
[White "vitnik2020"]
[Black "PrinceMurad09"]
[Result "0-1"]
[WhiteElo "2299"]
[BlackElo "2515"]
[TimeControl "180+1"]
[EndTime "9:17:55 PDT"]
[Termination "PrinceMurad09 won by checkmate"]

1. e4 {[%clk 0:03:00.9]} 1... c5 {[%clk 0:02:59.8]} 2. Nf3 {[%clk 0:03:00.3]}
2... d6 {[%clk 0:02:59.6]} 3. d4 {[%clk 0:02:59.7]} 3... cxd4 {[%clk 0:02:59.8]}
4. Nxd4 {[%clk 0:02:59.6]} 4... Nf6 {[%clk 0:03:00.1]} 5. Nc3 {[%clk 0:02:59.5]}
5... g6 {[%clk 0:03:00.5]} 6. Be2 {[%clk 0:02:58.7]} 6... Bg7 {[%clk 0:03:00.7]}
7. Be3 {[%clk 0:02:58.7]} 7... Nc6 {[%clk 0:03:00.8]} 8. Qd2 {[%clk 0:02:58.4]}
8... O-O {[%clk 0:02:53.7]} 9. O-O-O {[%clk 0:02:58.2]} 9... Ng4 {[%clk
0:02:52.7]} 10. Bxg4 {[%clk 0:02:57]} 10... Bxg4 {[%clk 0:02:53.6]} 11. f3
{[%clk 0:02:56.1]} 11... Bd7 {[%clk 0:02:47.4]} 12. Nxc6 {[%clk 0:02:55.5]}
12... bxc6 {[%clk 0:02:44.2]} 13. Bd4 {[%clk 0:02:55.4]} 13... Qa5 {[%clk
0:02:28.2]} 14. Bxg7 {[%clk 0:02:40.9]} 14... Kxg7 {[%clk 0:02:28.3]} 15. Qd4+
{[%clk 0:02:38]} 15... f6 {[%clk 0:02:18.4]} 16. f4 {[%clk 0:02:23.7]} 16...
Rab8 {[%clk 0:02:17.2]} 17. a3 {[%clk 0:02:09.4]} 17... Qb6 {[%clk 0:02:13.8]}
18. Qxb6 {[%clk 0:01:38.9]} 18... axb6 {[%clk 0:02:14.7]} 19. a4 {[%clk
0:01:34.6]} 19... Rfd8 {[%clk 0:02:03.2]} 20. Rhe1 {[%clk 0:01:32.3]} 20... Be8
{[%clk 0:01:53.2]} 21. b4 {[%clk 0:01:23.1]} 21... e5 {[%clk 0:01:43.4]} 22. g3
{[%clk 0:01:22.2]} 22... h5 {[%clk 0:01:42.7]} 23. Kb2 {[%clk 0:01:20.4]} 23...
Bf7 {[%clk 0:01:38.2]} 24. b5 {[%clk 0:01:18.5]} 24... cxb5 {[%clk 0:01:23]} 25.
axb5 {[%clk 0:01:16.9]} 25... Bc4 {[%clk 0:01:20.5]} 26. Rd2 {[%clk 0:01:10.4]}
26... Kf7 {[%clk 0:01:13.8]} 27. Ra1 {[%clk 0:01:09.1]} 27... Rb7 {[%clk
0:01:05.6]} 28. Ra4 {[%clk 0:01:04.9]} 28... Rc7 {[%clk 0:01:00.2]} 29. Ra6
{[%clk 0:01:04.6]} 29... Rb7 {[%clk 0:01:00.5]} 30. Ra4 {[%clk 0:01:01.5]} 30...
Be6 {[%clk 0:00:59.3]} 31. Nd5 {[%clk 0:00:59.7]} 31... Bxd5 {[%clk 0:00:58.5]}
32. Rxd5 {[%clk 0:00:58]} 32... Ke7 {[%clk 0:00:56.8]} 33. Rc4 {[%clk
0:00:56.8]} 33... Rdd7 {[%clk 0:00:43]} 34. Rc6 {[%clk 0:00:56]} 34... Rd8
{[%clk 0:00:34.3]} 35. f5 {[%clk 0:00:54.9]} 35... gxf5 {[%clk 0:00:28.3]} 36.
exf5 {[%clk 0:00:54.4]} 36... Rdd7 {[%clk 0:00:24.9]} 37. h3 {[%clk 0:00:53.7]}
37... Rd8 {[%clk 0:00:24.7]} 38. g4 {[%clk 0:00:51.8]} 38... hxg4 {[%clk
0:00:25.1]} 39. hxg4 {[%clk 0:00:51.6]} 39... Rg8 {[%clk 0:00:20.6]} 40. Rdxd6
{[%clk 0:00:49.7]} 40... Rxg4 {[%clk 0:00:20.7]} 41. Re6+ {[%clk 0:00:49.5]}
41... Kd7 {[%clk 0:00:21.1]} 42. Rxf6 {[%clk 0:00:49.3]} 42... Rb4+ {[%clk
0:00:20.7]} 43. Ka3 {[%clk 0:00:42.6]} 43... Rxb5 {[%clk 0:00:20.2]} 44. Rce6
{[%clk 0:00:41.6]} 44... Ra7# {[%clk 0:00:20]} 0-1